Workbook

Sheet 공용장비
A1: 공용장비 리스트
B2: *문화콘텐츠 제작지원센터 내부 협의를 통해 결정되었으며, 이후 장비가의 수정은 불가함.
F3: (단위 : 원)
A4: 자산번호 | B4: 장비명 | C4: 자산팀 비품가 | D4: 공급가 | E4: 감가상각율 | F4: 장비가 10개월
A5: 2013-02492 | B5: Camera Power Management(12V) | C5: 876,700 | D5: =C5/1.1 -> 797,000.0 | E5: 10% | F5: =D5*E5*10/12 -> 66,416.7
A6: 2011-03143 | B6: HDCAM VCR | C6: 57,987,361 | D6: 52,715,782.7 | E6: 10% | F6: 4,392,981.9
A7: 2018-01711 | B7: Ref.Monitor | C7: 37,400,000 | D7: 34,000,000.0 | E7: 20% | F7: =D7*E7*10/12 -> 5,666,666.7
A8: 2018-01710 | B8: Qnap TVS-871T(80TB) | C8: 8,580,000 | D8: 7,800,000.0 | E8: 20% | F8: 1,300,000.0
A9: 2018-01706 | B9: Vidchecker 8 Base, | C9: 30,800,000 | D9: 28,000,000.0 | E9: 20% | F9: 4,666,666.7
A10: 2018-01737 | B10: DCPs and IMF packager plug-in | C10: 8,580,000 | D10: 7,800,000.0 | E10: 20% | F10: 1,300,000.0
A11: 2018-01738 | B11: Included Interoperable Master Format (IMF) Player | C11: 8,250,000 | D11: 7,500,000.0 | E11: 20% | F11: 1,250,000.0
A12: 2013-02320 | B12: Studio Monitor/NTIS-184474 | C12: 1,430,000 | D12: =C12/1.1 -> 1,300,000.0 | E12: 10% | F12: =D12*E12*10/12 -> 108,333.3
A13: 2016-00380 | B13: 컬러 컨트롤패널 | C13: 2,090,000 | D13: 1,900,000.0 | E13: 20% | F13: 316,666.7
A14: 2014-02372 | B14: 4K 스코프 모니터 | C14: 1,400,000 | D14: 1,272,727.3 | E14: 10% | F14: 106,060.6
A15: 2014-02367 | B15: LTO 백업 시스템/NTIS-203672 | C15: 15,500,000 | D15: 14,090,909.1 | E15: 10% | F15: 1,174,242.4
A16: 2013-02319 | B16: Accelerator/NTIS-184474 | C16: 10,120,000 | D16: 9,200,000.0 | E16: 10% | F16: 766,666.7
A17: 2016-01226~8 | B17: ZENMUSE X5R SSD(512G) | C17: 2,793,000 | D17: 2,539,090.9 | E17: 20% | F17: 423,181.8
A18: 2014-02358 | B18: 공용장비_360도 VR 카메라시스템 서비스 모듈 소프트웨어 | C18: 11,220,000 | D18: 10,200,000.0 | E18: 10% | F18: 850,000.0
A19: 2011-05066 | B19: Adobe After Effect CS5/Mac | C19: 1,485,000 | D19: 1,350,000.0 | E19: 10% | F19: 112,500.0
A20: 2012-02679 | B20: 4-channel charger | C20: 1,100,000 | D20: =C20/1.1 -> 1,000,000.0 | E20: 10% | F20: 83,333.3
A21: 2010-00491 | B21: 컴퓨터 본체 조립형 | C21: 1,350,000 | D21: 1,227,272.7 | E21: 10% | F21: 102,272.7
A22: 2016-01300 | B22: 데스크탑PC (일반형) | C22: 669,900 | D22: 609,000.0 | E22: 20% | F22: 101,500.0
A23: 2016-00830 | B23: 지능형 드론(Blueye 1K Drone) | C23: 2,400,000 | D23: 2,181,818.2 | E23: 20% | F23: 363,636.4
A24: 2016-00831 | B24: 지능형 드론(Blueye 1K Drone) | C24: 2,400,000 | D24: 2,181,818.2 | E24: 20% | F24: 363,636.4
A25: 2016-00832 | B25: 지능형 드론(Blueye 1K Drone) | C25: 2,400,000 | D25: 2,181,818.2 | E25: 20% | F25: 363,636.4
A26: 2016-00834 | B26: 지능형 드론(Blueye 1K Drone) | C26: 2,400,000 | D26: =C26/1.1 -> 2,181,818.2 | E26: 20% | F26: 363,636.4
A27: 2016-00835 | B27: 지능형 드론(Blueye 1K Drone) | C27: 2,400,000 | D27: 2,181,818.2 | E27: 20% | F27: 363,636.4
A28: 2016-00837 | B28: 지능형 드론(Blueye 1K Drone) | C28: 2,400,000 | D28: 2,181,818.2 | E28: 20% | F28: 363,636.4
A29: 2012-02595 | B29: 360도 Viseo VR Production System / NTIS-172616 | C29: 40,500,000 | D29: =C29/1.1 -> 36,818,181.8 | E29: 10% | F29: 3,068,181.8
A30: 2013-01901 | B30: 네트워크 모니터링 시스템 | C30: 94,985,000 | D30: =C30/1.1 -> 86,350,000.0 | E30: 10% | F30: 7,195,833.3
A31: 2018-01739 | B31: Final cut Pro X | C31: 415,520 | D31: 377,745.5 | E31: 20% | F31: 62,957.6
A32: 2013-02317 | B32: Apple Mac System(Basic)/NTIS-184474 | C32: 8,800,000 | D32: 8,000,000.0 | E32: 10% | F32: 666,666.7
A33: 2014-02368 | B33: 서브 마스터링 시스템/NTIS-203672 | C33: 14,900,000 | D33: 13,545,454.5 | E33: 10% | F33: 1,128,787.9
A34: 2016-01229 | B34: 인스파이어1 V2.0 | C34: 2,440,000 | D34: =C34/1.1 -> 2,218,181.8 | E34: 20% | F34: 369,697.0
A35: 2013-02318 | B35: 4K편집 Storage/NTIS-184474 | C35: 15,290,000 | D35: 13,900,000.0 | E35: 10% | F35: 1,158,333.3
